fUST/lending_fUST_20260506
["ID","MTS","AMOUNT","RATE_DAILY","PERIOD"]
[421645364,1778013059000,-500.0,0.00012602,2]
[421645383,1778013059000,-500.0,0.00012602,2]
[421645397,1778013059000,-500.0,0.00012602,2]
[421645385,1778013059000,-500.0,0.00012602,2]
[421645398,1778013059000,-500.0,0.00012602,2]
[421645396,1778013059000,-752.6,0.00012602,2]
[421645389,1778013059000,-1072.89,0.00012602,2]
[421645390,1778013059000,-500.0,0.00012602,2]
[421645375,1778013059000,-504.09,0.00012602,2]
[421645391,1778013059000,-500.0,0.00012602,2]
[421645381,1778013059000,-647.49,0.00012602,2]
[421645378,1778013059000,-500.0,0.00012602,2]
[421645380,1778013059000,-500.0,0.00012602,2]
[421645376,1778013059000,-500.0,0.00012602,2]
[421645379,1778013059000,-500.0,0.00012602,2]
[421645377,1778013059000,-519.75,0.00012602,2]
[421645451,1778013060000,-828.65,0.00012602,2]
[421645454,1778013060000,-500.0,0.00012602,2]
[421645461,1778013060000,-500.0,0.00012602,2]
[421645453,1778013060000,-689.72,0.00012602,2]
[421645455,1778013060000,-1868.38,0.00012602,2]
[421645457,1778013060000,-500.0,0.00012602,2]
[421645456,1778013060000,-1334.62,0.00012602,2]
[421645458,1778013060000,-1031.37,0.00012602,2]
[421645459,1778013060000,-500.0,0.00012602,2]
[421645460,1778013060000,-611.61,0.00012602,2]
[421645472,1778013060000,-500.0,0.00012602,2]
[421645462,1778013060000,-640.91,0.00012602,2]
[421645471,1778013060000,-500.0,0.00012602,2]
[421645464,1778013060000,-500.0,0.00012602,2]
[421645473,1778013060000,-534.49,0.00012602,2]
[421645469,1778013060000,-500.0,0.00012602,2]
[421645470,1778013060000,-500.0,0.00012602,2]
[421645466,1778013060000,-3228.82,0.00012602,2]
[421645452,1778013060000,-500.0,0.00012602,2]
[421645468,1778013060000,-500.0,0.00012602,2]
[421645463,1778013060000,-500.0,0.00012602,2]
[421645446,1778013060000,-500.0,0.00012602,2]
[421645434,1778013060000,-500.0,0.00012602,2]
[421645450,1778013060000,-500.0,0.00012602,2]
[421645465,1778013060000,-500.0,0.00012602,2]
[421645427,1778013060000,-500.0,0.00012602,2]
[421645429,1778013060000,-500.0,0.00012602,2]
[421645428,1778013060000,-500.0,0.00012602,2]
[421645437,1778013060000,-503.03526055,0.00012602,2]
[421645432,1778013060000,-951.56,0.00012602,2]
[421645430,1778013060000,-500.0,0.00012602,2]
[421645436,1778013060000,-860.42,0.00012602,2]
[421645431,1778013060000,-500.0,0.00012602,2]
[421645433,1778013060000,-500.0,0.00012602,2]
[421645435,1778013060000,-500.0,0.00012602,2]
[421645438,1778013060000,-1621.54,0.00012602,2]
[421645442,1778013060000,-1411.33,0.00012602,2]
[421645440,1778013060000,-500.0,0.00012602,2]
[421645441,1778013060000,-500.0,0.00012602,2]
[421645439,1778013060000,-500.0,0.00012602,2]
[421645443,1778013060000,-500.0,0.00012602,2]
[421645447,1778013060000,-500.0,0.00012602,2]
[421645444,1778013060000,-546.94,0.00012602,2]
[421645448,1778013060000,-500.0,0.00012602,2]
[421645445,1778013060000,-500.0,0.00012602,2]
[421645449,1778013060000,-501.45172283,0.00012602,2]
[421645467,1778013060000,-1571.17,0.00012602,2]
[421645476,1778013060000,-637.62,0.00012602,2]
[421645475,1778013060000,-500.0,0.00012602,2]
[421645498,1778013060000,-500.0,0.00012602,2]
[421645501,1778013060000,-500.71,0.00012602,2]
[421645503,1778013060000,-500.0,0.00012602,2]
[421645504,1778013060000,-500.0,0.00012602,2]
[421645505,1778013060000,-500.0,0.00012602,2]
[421645499,1778013060000,-500.0,0.00012602,2]
[421645506,1778013060000,-500.0,0.00012602,2]
[421645500,1778013060000,-500.0,0.00012602,2]
[421645515,1778013060000,-500.0,0.00012602,2]
[421645517,1778013060000,-555.36787415,0.00012602,2]
[421645514,1778013060000,-500.0,0.00012602,2]
[421645519,1778013060000,-500.0,0.00012602,2]
[421645510,1778013060000,-500.0,0.00012602,2]
[421645513,1778013060000,-500.0,0.00012602,2]
[421645509,1778013060000,-500.0,0.00012602,2]
[421645520,1778013060000,-500.0,0.00012602,2]
[421645511,1778013060000,-1391.42,0.00012602,2]
[421645518,1778013060000,-500.0,0.00012602,2]
[421645516,1778013060000,-500.0,0.00012602,2]
[421645521,1778013060000,-706.73,0.00012602,2]
[421645474,1778013060000,-500.0,0.00012602,2]
[421645502,1778013060000,-634.17363662,0.00012602,2]
[421645508,1778013060000,-1076.85,0.00012602,2]
[421645512,1778013060000,-500.0,0.00012602,2]
[421645497,1778013060000,-500.0,0.00012602,2]
[421645485,1778013060000,-500.0,0.00012602,2]
[421645507,1778013060000,-500.0,0.00012602,2]
[421645479,1778013060000,-500.0,0.00012602,2]
[421645480,1778013060000,-693.9455,0.00012602,2]
[421645477,1778013060000,-500.0,0.00012602,2]
[421645478,1778013060000,-500.0,0.00012602,2]
[421645484,1778013060000,-500.0,0.00012602,2]
[421645481,1778013060000,-307.56689904,0.00012602,2]
[421645483,1778013060000,-790.4,0.00012602,2]
[421645486,1778013060000,-593.94,0.00012602,2]
[421645482,1778013060000,-500.0,0.00012602,2]
[421645487,1778013060000,-1892.54,0.00012602,2]
[421645488,1778013060000,-199.5442862,0.00012602,2]
[421645490,1778013060000,-3481.73,0.00012602,2]
[421645491,1778013060000,-225.38977988,0.00012602,2]
[421645489,1778013060000,-500.0,0.00012602,2]
[421645492,1778013060000,-155.0,0.00012602,2]
[421645494,1778013060000,-500.0,0.00012602,2]
[421645493,1778013060000,-500.0,0.00012602,2]
[421645496,1778013060000,-500.0,0.00012602,2]
[421645495,1778013060000,-500.0,0.00012602,2]
[421645566,1778013061000,-500.0,0.00012602,2]
[421645559,1778013061000,-500.0,0.00012602,2]
[421645561,1778013061000,-2840.15,0.00012602,2]
[421645562,1778013061000,-1379.33,0.00012602,2]
[421645568,1778013061000,-500.0,0.00012602,2]
[421645552,1778013061000,-500.0,0.00012602,2]
[421645555,1778013061000,-3567.82,0.00012602,2]
[421645553,1778013061000,-500.0,0.00012602,2]
[421645556,1778013061000,-500.0,0.00012602,2]
[421645560,1778013061000,-2061.88,0.00012602,2]
[421645569,1778013061000,-770.74,0.00012602,2]
[421645570,1778013061000,-500.0,0.00012602,2]
[421645572,1778013061000,-500.0,0.00012602,2]
[421645565,1778013061000,-500.0,0.00012602,2]
[421645563,1778013061000,-866.4,0.00012602,2]
[421645567,1778013061000,-500.0,0.00012602,2]
[421645558,1778013061000,-500.0,0.00012602,2]
[421645571,1778013061000,-500.0,0.00012602,2]
[421645573,1778013061000,-505.47,0.00012602,2]
[421645578,1778013061000,-3412.82,0.00012602,2]
[421645581,1778013061000,-500.0,0.00012602,2]
[421645582,1778013061000,-582.71,0.00012602,2]
[421645576,1778013061000,-500.0,0.00012602,2]
[421645575,1778013061000,-980.59,0.00012602,2]
[421645554,1778013061000,-8540.26,0.00012602,2]
[421645564,1778013061000,-734.4,0.00012602,2]
[421645551,1778013061000,-1174.85,0.00012602,2]
[421645529,1778013061000,-733.39,0.00012602,2]
[421645549,1778013061000,-2842.66,0.00012602,2]
[421645574,1778013061000,-500.0,0.00012602,2]
[421645523,1778013061000,-504.7,0.00012602,2]
[421645532,1778013061000,-500.0,0.00012602,2]
[421645522,1778013061000,-500.0,0.00012602,2]
[421645527,1778013061000,-515.72,0.00012602,2]
[421645533,1778013061000,-500.0,0.00012602,2]
[421645525,1778013061000,-500.0,0.00012602,2]
[421645526,1778013061000,-500.0,0.00012602,2]
[421645530,1778013061000,-500.0,0.00012602,2]
[421645531,1778013061000,-500.0,0.00012602,2]
[421645528,1778013061000,-500.0,0.00012602,2]
[421645545,1778013061000,-500.0,0.00012602,2]
[421645535,1778013061000,-500.0,0.00012602,2]
[421645534,1778013061000,-500.0,0.00012602,2]
[421645537,1778013061000,-500.0,0.00012602,2]
[421645536,1778013061000,-500.0,0.00012602,2]
[421645539,1778013061000,-500.0,0.00012602,2]
[421645538,1778013061000,-500.0,0.00012602,2]
[421645544,1778013061000,-531.58,0.00012602,2]
[421645542,1778013061000,-500.0,0.00012602,2]
[421645540,1778013061000,-5733.83,0.00012602,2]
[421645543,1778013061000,-500.0,0.00012602,2]
[421645541,1778013061000,-500.0,0.00012602,2]
[421645557,1778013061000,-500.0,0.00012602,2]
[421645548,1778013061000,-500.0,0.00012602,2]
[421645546,1778013061000,-500.0,0.00012602,2]
[421645547,1778013061000,-9873.12,0.00012602,2]
[421645550,1778013061000,-2721.68,0.00012602,2]
[421645577,1778013061000,-940.12,0.00012602,2]
[421645583,1778013061000,-500.0,0.00012602,2]
[421645580,1778013061000,-500.0,0.00012602,2]
[421645617,1778013061000,-569.43,0.00012602,2]
[421645615,1778013061000,-642.3,0.00012602,2]
[421645613,1778013061000,-500.0,0.00012602,2]
[421645616,1778013061000,-577.66,0.00012602,2]
[421645618,1778013061000,-1127.91,0.00012602,2]
[421645619,1778013061000,-500.0,0.00012602,2]
[421645621,1778013061000,-2098.95,0.00012602,2]
[421645620,1778013061000,-2821.94,0.00012602,2]
[421645627,1778013061000,-1646.04,0.00012602,2]
[421645623,1778013061000,-500.0,0.00012602,2]
[421645626,1778013061000,-44257.27,0.00012602,2]
[421645624,1778013061000,-500.0,0.00012602,2]
[421645612,1778013061000,-597.09,0.00012602,2]
[421645622,1778013061000,-500.0,0.00012602,2]
[421645625,1778013061000,-4895.33,0.00012602,2]
[421645628,1778013061000,-500.0,0.00012602,2]
[421645639,1778013061000,-500.0,0.00012602,2]
[421645632,1778013061000,-500.0,0.00012602,2]
[421645633,1778013061000,-8921.17,0.00012602,2]
[421645631,1778013061000,-1966.75,0.00012602,2]
[421645630,1778013061000,-1798.14,0.00012602,2]
[421645636,1778013061000,-785.78,0.00012602,2]
[421645638,1778013061000,-814.41,0.00012602,2]
[421645635,1778013061000,-3749.41,0.00012602,2]
[421645634,1778013061000,-2669.05,0.00012602,2]
[421645579,1778013061000,-500.0,0.00012602,2]
[421645629,1778013061000,-872.59,0.00012602,2]
[421645614,1778013061000,-500.0,0.00012602,2]
[421645637,1778013061000,-500.0,0.00012602,2]
[421645607,1778013061000,-7048.81,0.00012602,2]
[421645611,1778013061000,-500.0,0.00012602,2]
[421645584,1778013061000,-500.0,0.00012602,2]
[421645594,1778013061000,-500.0,0.00012602,2]
[421645593,1778013061000,-500.0,0.00012602,2]
[421645585,1778013061000,-500.0,0.00012602,2]
[421645586,1778013061000,-502.38,0.00012602,2]
[421645588,1778013061000,-3394.29,0.00012602,2]
[421645587,1778013061000,-2715.45,0.00012602,2]
[421645591,1778013061000,-2617.77,0.00012602,2]
[421645589,1778013061000,-500.0,0.00012602,2]
[421645590,1778013061000,-500.0,0.00012602,2]
[421645595,1778013061000,-500.0,0.00012602,2]
[421645597,1778013061000,-2195.17,0.00012602,2]
[421645592,1778013061000,-885.18,0.00012602,2]
[421645600,1778013061000,-5595.74,0.00012602,2]
[421645596,1778013061000,-1698.72,0.00012602,2]
[421645609,1778013061000,-500.0,0.00012602,2]
[421645605,1778013061000,-1765.48,0.00012602,2]
[421645604,1778013061000,-596.63,0.00012602,2]
[421645601,1778013061000,-500.0,0.00012602,2]
[421645608,1778013061000,-500.0,0.00012602,2]
[421645602,1778013061000,-603.85,0.00012602,2]
[421645603,1778013061000,-500.0,0.00012602,2]
[421645599,1778013061000,-7957.64,0.00012602,2]
[421645598,1778013061000,-3472.73,0.00012602,2]
[421645606,1778013061000,-2449.09,0.00012602,2]
[421645610,1778013061000,-2015.85,0.00012602,2]
[421645667,1778013062000,-203.83,0.00012613,2]
[421645669,1778013062000,-151.0,0.000127,2]
[421645674,1778013062000,-189.0,0.0001274,3]
[421645666,1778013062000,-500.0,0.00012602,2]
[421645671,1778013062000,-151.0,0.000127,2]
[421645672,1778013062000,-151.0,0.000127,2]
[421645673,1778013062000,-200.558,0.00012739,2]
[421645670,1778013062000,-151.0,0.000127,2]
[421645676,1778013062000,-151.0,0.000128,2]
[421645675,1778013062000,-1559.0,0.00012778,2]
[421645681,1778013062000,-500.0,0.00012876,2]
[421645679,1778013062000,-151.0,0.000128,2]
[421645685,1778013062000,-500.0,0.00012876,2]
[421645683,1778013062000,-758.47,0.00012876,2]
[421645678,1778013062000,-151.0,0.000128,2]
[421645680,1778013062000,-227.13,0.00012838,2]
[421645684,1778013062000,-500.0,0.00012876,2]
[421645686,1778013062000,-500.0,0.00012876,2]
[421645682,1778013062000,-1293.48,0.00012876,2]
[421645687,1778013062000,-500.0,0.00012876,2]
[421645668,1778013062000,-155.0,0.00012635,2]
[421645688,1778013062000,-38000.0,0.00012876,2]
[421645677,1778013062000,-151.0,0.000128,2]
[421645665,1778013062000,-8894.28,0.00012602,2]
[421645647,1778013062000,-3924.94,0.00012602,2]
[421645661,1778013062000,-500.0,0.00012602,2]
[421645698,1778013062000,-500.0,0.00012876,2]
[421645640,1778013062000,-366.56359311,0.00012602,2]
[421645642,1778013062000,-500.0,0.00012602,2]
[421645648,1778013062000,-411.99209911,0.00012602,2]
[421645649,1778013062000,-500.0,0.00012602,2]
[421645641,1778013062000,-2774.27,0.00012602,2]
[421645650,1778013062000,-1176.0,0.00012602,2]
[421645651,1778013062000,-500.0,0.00012602,2]
[421645652,1778013062000,-500.0,0.00012602,2]
[421645643,1778013062000,-500.0,0.00012602,2]
[421645644,1778013062000,-1186.69,0.00012602,2]
[421645645,1778013062000,-500.0,0.00012602,2]
[421645646,1778013062000,-9357.54,0.00012602,2]
[421645664,1778013062000,-500.0,0.00012602,2]
[421645654,1778013062000,-651.35,0.00012602,2]
[421645653,1778013062000,-500.0,0.00012602,2]
[421645658,1778013062000,-500.0,0.00012602,2]
[421645659,1778013062000,-500.0,0.00012602,2]
[421645655,1778013062000,-1308.12,0.00012602,2]
[421645656,1778013062000,-500.0,0.00012602,2]
[421645657,1778013062000,-4115.09,0.00012602,2]
[421645663,1778013062000,-500.0,0.00012602,2]
[421645662,1778013062000,-2158.14,0.00012602,2]
[421645660,1778013062000,-2044.75,0.00012602,2]
[421645693,1778013062000,-500.0,0.00012876,2]
[421645703,1778013062000,-1575.26,0.00012876,2]
[421645695,1778013062000,-588.8,0.00012876,2]
[421645722,1778013062000,-500.0,0.00012876,2]
[421645724,1778013062000,-500.0,0.00012876,2]
[421645720,1778013062000,-500.0,0.00012876,2]
[421645723,1778013062000,-519.75,0.00012876,2]
[421645725,1778013062000,-647.49,0.00012876,2]
[421645727,1778013062000,-594.31,0.00012876,2]
[421645726,1778013062000,-500.0,0.00012876,2]
[421645728,1778013062000,-500.0,0.00012876,2]
[421645729,1778013062000,-549.69,0.00012876,2]
[421645731,1778013062000,-605.46,0.00012876,2]
[421645730,1778013062000,-1072.89,0.00012876,2]
[421645732,1778013062000,-752.6,0.00012876,2]
[421645733,1778013062000,-500.0,0.00012876,2]
[421645734,1778013062000,-3005.81,0.00012876,2]
[421645735,1778013062000,-1608.24,0.00012876,2]
[421645736,1778013062000,-500.0,0.00012876,2]
[421645737,1778013062000,-500.0,0.00012876,2]
[421645689,1778013062000,-500.0,0.00012876,2]
[421645738,1778013062000,-1561.35,0.00012876,2]
[421645742,1778013062000,-678.53,0.00012876,2]
[421645740,1778013062000,-500.0,0.00012876,2]
[421645743,1778013062000,-500.0,0.00012876,2]
[421645741,1778013062000,-832.52,0.00012876,2]
[421645721,1778013062000,-504.09,0.00012876,2]
[421645718,1778013062000,-500.0,0.00012876,2]
[421645739,1778013062000,-500.0,0.00012876,2]
[421645712,1778013062000,-502.23,0.00012876,2]
[421645719,1778013062000,-500.0,0.00012876,2]
[421645694,1778013062000,-2874.1054,0.00012876,2]
[421645691,1778013062000,-500.0,0.00012876,2]
[421645690,1778013062000,-500.0,0.00012876,2]
[421645696,1778013062000,-627.92248606,0.00012876,2]
[421645697,1778013062000,-500.0,0.00012876,2]
[421645699,1778013062000,-734.14,0.00012876,2]
[421645705,1778013062000,-500.0,0.00012876,2]
[421645701,1778013062000,-596.11,0.00012876,2]
[421645700,1778013062000,-555.22,0.00012876,2]
[421645702,1778013062000,-500.0,0.00012876,2]
[421645692,1778013062000,-897.91,0.00012876,2]
[421645707,1778013062000,-500.0,0.00012876,2]
[421645704,1778013062000,-582.48,0.00012876,2]
[421645713,1778013062000,-1318.91,0.00012876,2]
[421645715,1778013062000,-500.0,0.00012876,2]
[421645711,1778013062000,-308.80042349,0.00012876,2]
[421645714,1778013062000,-501.63,0.00012876,2]
[421645717,1778013062000,-2249.89,0.00012876,2]
[421645710,1778013062000,-500.0,0.00012876,2]
[421645708,1778013062000,-500.0,0.00012876,2]
[421645709,1778013062000,-522.57,0.00012876,2]
[421645706,1778013062000,-500.0,0.00012876,2]
[421645716,1778013062000,-577.6,0.00012876,2]
[421645765,1778013063000,-828.65,0.00012876,2]
[421645770,1778013063000,-1334.62,0.00012876,2]
[421645771,1778013063000,-1031.37,0.00012876,2]
[421645768,1778013063000,-500.0,0.00012876,2]
[421645766,1778013063000,-500.0,0.00012876,2]
[421645767,1778013063000,-689.72,0.00012876,2]
[421645769,1778013063000,-1868.38,0.00012876,2]
[421645772,1778013063000,-500.0,0.00012876,2]
[421645773,1778013063000,-611.61,0.00012876,2]
[421645774,1778013063000,-640.91,0.00012876,2]
[421645777,1778013063000,-1571.17,0.00012876,2]
[421645775,1778013063000,-500.0,0.00012876,2]
[421645779,1778013063000,-500.0,0.00012876,2]
[421645782,1778013063000,-693.9455,0.00012876,2]
[421645778,1778013063000,-500.0,0.00012876,2]
[421645764,1778013063000,-500.0,0.00012876,2]
[421645776,1778013063000,-3228.82,0.00012876,2]
[421645763,1778013063000,-38000.0,0.00012876,2]
[421645752,1778013063000,-951.56,0.00012876,2]
[421645762,1778013063000,-500.0,0.00012876,2]
[421645745,1778013063000,-907.31,0.00012876,2]
[421645746,1778013063000,-585.14,0.00012876,2]
[421645747,1778013063000,-638.36590337,0.00012876,2]
[421645750,1778013063000,-3247.81,0.00012876,2]
[421645748,1778013063000,-673.1,0.00012876,2]
[421645751,1778013063000,-1384.25,0.00012876,2]
[421645749,1778013063000,-500.0,0.00012876,2]
[421645756,1778013063000,-1621.54,0.00012876,2]
[421645758,1778013063000,-500.0,0.00012876,2]
[421645755,1778013063000,-860.42,0.00012876,2]
[421645753,1778013063000,-500.0,0.00012876,2]
[421645754,1778013063000,-500.0,0.00012876,2]
[421645759,1778013063000,-1411.33,0.00012876,2]
[421645757,1778013063000,-500.0,0.00012876,2]
[421645760,1778013063000,-500.0,0.00012876,2]
[421645781,1778013063000,-500.0,0.00012876,2]
[421645761,1778013063000,-546.94,0.00012876,2]
[421645744,1778013063000,-505.37,0.00012876,2]
[421645783,1778013063000,-790.4,0.00012876,2]
[421645802,1778013063000,-500.0,0.00012876,2]
[421645784,1778013063000,-500.0,0.00012876,2]
[421645805,1778013063000,-5733.83,0.00012876,2]
[421645809,1778013063000,-500.0,0.00012876,2]
[421645811,1778013063000,-2721.68,0.00012876,2]
[421645810,1778013063000,-2842.66,0.00012876,2]
[421645812,1778013063000,-1174.85,0.00012876,2]
[421645813,1778013063000,-8540.26,0.00012876,2]
[421645815,1778013063000,-500.0,0.00012876,2]
[421645816,1778013063000,-2061.88,0.00012876,2]
[421645814,1778013063000,-3567.82,0.00012876,2]
[421645817,1778013063000,-2840.15,0.00012876,2]
[421645819,1778013063000,-866.4,0.00012876,2]
[421645818,1778013063000,-1379.33,0.00012876,2]
[421645821,1778013063000,-770.74,0.00012876,2]
[421645823,1778013063000,-505.47,0.00012876,2]
[421645822,1778013063000,-500.0,0.00012876,2]
[421645820,1778013063000,-734.4,0.00012876,2]
[421645780,1778013063000,-534.49,0.00012876,2]
[421645801,1778013063000,-500.0,0.00012876,2]
[421645808,1778013063000,-9873.12,0.00012876,2]
[421645800,1778013063000,-733.39,0.00012876,2]
[421645807,1778013063000,-500.0,0.00012876,2]
[421645785,1778013063000,-593.94,0.00012876,2]
[421645806,1778013063000,-344.67276147,0.00012876,2]
[421645786,1778013063000,-1892.54,0.00012876,2]
[421645788,1778013063000,-3481.73,0.00012876,2]
[421645789,1778013063000,-500.0,0.00012876,2]
[421645791,1778013063000,-500.71,0.00012876,2]
[421645790,1778013063000,-500.0,0.00012876,2]
[421645793,1778013063000,-500.0,0.00012876,2]
[421645787,1778013063000,-500.0,0.00012876,2]
[421645794,1778013063000,-1391.42,0.00012876,2]
[421645792,1778013063000,-1076.85,0.00012876,2]
[421645796,1778013063000,-500.0,0.00012876,2]
[421645798,1778013063000,-500.0,0.00012876,2]
[421645799,1778013063000,-515.72,0.00012876,2]
[421645797,1778013063000,-706.73,0.00012876,2]
[421645803,1778013063000,-500.0,0.00012876,2]
[421645804,1778013063000,-500.0,0.00012876,2]
[421645795,1778013063000,-500.0,0.00012876,2]
[421645836,1778013064000,-500.0,0.00012876,2]
[421645839,1778013064000,-885.18,0.00012876,2]
[421645840,1778013064000,-500.0,0.00012876,2]
[421645837,1778013064000,-500.0,0.00012876,2]
[421645842,1778013064000,-1698.72,0.00012876,2]
[421645844,1778013064000,-3472.73,0.00012876,2]
[421645843,1778013064000,-2195.17,0.00012876,2]
[421645838,1778013064000,-2617.77,0.00012876,2]
[421645841,1778013064000,-500.0,0.00012876,2]
[421645834,1778013064000,-3394.29,0.00012876,2]
[421645825,1778013064000,-980.59,0.00012876,2]
[421645833,1778013064000,-502.38,0.00012876,2]
[421645827,1778013064000,-3412.82,0.00012876,2]
[421645831,1778013064000,-193.4467298,0.00012876,2]
[421645832,1778013064000,-584.34657012,0.00012876,2]
[421645830,1778013064000,-582.71,0.00012876,2]
[421645829,1778013064000,-500.0,0.00012876,2]
[421645828,1778013064000,-500.0,0.00012876,2]
[421645826,1778013064000,-940.12,0.00012876,2]
[421645845,1778013064000,-7957.64,0.00012876,2]
[421645824,1778013064000,-500.0,0.00012876,2]
[421645835,1778013064000,-2715.45,0.00012876,2]
[421645846,1778013064000,-5595.74,0.00012876,2]
[421645847,1778013064000,-603.85,0.00012876,2]
[421645867,1778013064000,-1646.04,0.00012876,2]
[421645870,1778013064000,-1966.75,0.00012876,2]
[421645871,1778013064000,-3785.14050429,0.00012876,2]
[421645866,1778013064000,-44257.27,0.00012876,2]
[421645848,1778013064000,-596.63,0.00012876,2]
[421645869,1778013064000,-1798.14,0.00012876,2]
[421645868,1778013064000,-872.59,0.00012876,2]
[421645865,1778013064000,-4895.33,0.00012876,2]
[421645863,1778013064000,-500.0,0.00012876,2]
[421645860,1778013064000,-2821.94,0.00012876,2]
[421645864,1778013064000,-500.0,0.00012876,2]
[421645858,1778013064000,-1127.91,0.00012876,2]
[421645862,1778013064000,-500.0,0.00012876,2]
[421645859,1778013064000,-500.0,0.00012876,2]
[421645849,1778013064000,-1765.48,0.00012876,2]
[421645850,1778013064000,-2449.09,0.00012876,2]
[421645861,1778013064000,-2098.95,0.00012876,2]
[421645855,1778013064000,-642.3,0.00012876,2]
[421645851,1778013064000,-7048.81,0.00012876,2]
[421645854,1778013064000,-500.0,0.00012876,2]
[421645856,1778013064000,-577.66,0.00012876,2]
[421645853,1778013064000,-597.09,0.00012876,2]
[421645857,1778013064000,-569.43,0.00012876,2]
[421645852,1778013064000,-2015.85,0.00012876,2]
[421645879,1778013065000,-500.0,0.00012024,2]
[421645884,1778013065000,-500.0,0.00012024,2]
[421645889,1778013065000,-500.0,0.00012024,2]
[421645887,1778013065000,-634.61934056,0.00012024,2]
[421645885,1778013065000,-386.39186337,0.00012024,2]
[421645883,1778013065000,-500.0,0.00012024,2]
[421645881,1778013065000,-500.0,0.00012024,2]
[421645888,1778013065000,-500.0,0.00012024,2]
[421645880,1778013065000,-500.0,0.00012024,2]
[421645877,1778013065000,-500.0,0.00012024,2]
[421645878,1778013065000,-500.0,0.00012024,2]
[421645875,1778013065000,-500.0,0.00012024,2]
[421645873,1778013065000,-500.0,0.00012024,2]
[421645874,1778013065000,-500.0,0.00012024,2]
[421645872,1778013065000,-3422.40111646,0.00012876,2]
[421645876,1778013065000,-500.0,0.00012024,2]
[421645886,1778013065000,-500.0,0.00012024,2]
[421645882,1778013065000,-500.0,0.00012024,2]
[421645890,1778013065000,-500.0,0.00012024,2]
[421645906,1778013065000,-814.41,0.00012876,2]
[421645905,1778013065000,-785.78,0.00012876,2]
[421645902,1778013065000,-1713.62837925,0.00012876,2]
[421645904,1778013065000,-3749.41,0.00012876,2]
[421645903,1778013065000,-2669.05,0.00012876,2]
[421645898,1778013065000,-354.84012368,0.00012024,2]
[421645899,1778013065000,-500.0,0.00012024,2]
[421645900,1778013065000,-500.0,0.00012024,2]
[421645891,1778013065000,-163.82398866,0.00012024,2]
[421645897,1778013065000,-500.0,0.00012024,2]
[421645896,1778013065000,-500.0,0.00012024,2]
[421645907,1778013065000,-2774.27,0.00012876,2]
[421645894,1778013065000,-500.0,0.00012024,2]
[421645895,1778013065000,-500.0,0.00012024,2]
[421645892,1778013065000,-336.17601134,0.00012024,2]
[421645893,1778013065000,-232.18052783,0.00012024,2]
[421645901,1778013065000,-595.25886276,0.00012024,2]
[421645909,1778013066000,12398.65936219,7.6e-05,2]
[421645908,1778013066000,-26260.49546365,0.00012876,2]
[421645914,1778013293000,5439.85805415,0.00015681,120]
[421645913,1778013293000,5439.85805415,0.00015657,120]